bitfinex-derivatives/quotes_BTCF0:USTF0_20251225
["timestamp","ask_amount","ask_price","bid_price","bid_amount"]
[1766664750580,0.02667058,87580.0,87568.0,0.0414265]
[1766664750884,0.0114248,87581.0,87568.0,0.03]
[1766664751182,0.02667057,87580.0,87568.0,0.03]
[1766664751481,0.0114251,87579.0,87568.0,0.03]
[1766664753482,0.00017121,87585.0,87568.0,0.03]
[1766664753688,0.0114258,87574.0,87568.0,0.03]
[1766664753883,0.0114259,87573.0,87559.0,0.05668]
[1766664754074,0.00017121,87585.0,87559.0,0.08668]
[1766664754275,0.02666546,87584.0,87559.0,0.08668]
[1766664754476,0.0114263,87570.0,87559.0,0.08668]
[1766664754785,0.0114265,87568.0,87559.0,0.08668]
[1766664754985,0.0114261,87571.0,87559.0,0.08668]
[1766664756083,0.0114251,87579.0,87559.0,0.03]
[1766664756285,0.02665063,87578.0,87559.0,0.03]
[1766664756580,0.02665063,87577.0,87559.0,0.03]
[1766664756785,0.02665063,87576.0,87559.0,0.03]
[1766664756989,0.02665063,87575.0,87559.0,0.03]
[1766664757178,0.02665063,87574.0,87559.0,0.03]
[1766664757484,0.0114263,87570.0,87559.0,0.03]
[1766664762389,0.0114259,87573.0,87559.0,0.03]
[1766664762688,0.0114258,87574.0,87559.0,0.0414276]
[1766664763075,0.00017121,87585.0,87559.0,0.03]
[1766664763274,0.0114238,87589.0,87572.0,0.0114259]
[1766664763478,0.0685835,87592.0,87572.0,0.03]
[1766664764077,0.0114236,87590.0,87575.0,0.0114255]
[1766664764280,0.01159481,87591.0,87575.0,0.0114255]
[1766664767187,0.01159481,87591.0,87574.0,0.00017121]
[1766664767490,0.01159481,87591.0,87574.0,0.01159681]
[1766664769492,0.00017121,87591.0,87576.0,0.0114253]
[1766664770388,0.00017121,87591.0,87578.0,0.0114251]
[1766664772084,0.00017121,87591.0,87575.0,0.0114255]
[1766664772692,0.0114237,87590.0,87575.0,0.0114255]
[1766664774385,0.0114239,87588.0,87575.0,0.0114255]
[1766664774887,0.0114242,87586.0,87574.0,0.00017121]
[1766664775087,0.0114245,87584.0,87574.0,0.00017121]
[1766664775289,0.0114241,87587.0,87574.0,0.00017121]
[1766664777084,0.0114243,87585.0,87574.0,0.00017121]
[1766664777785,0.0114247,87583.0,87574.0,0.00017121]
[1766664777984,0.0114247,87583.0,87566.0,0.0114267]
[1766664778187,0.0114247,87583.0,87566.0,0.0414267]
[1766664778389,0.0114247,87583.0,87568.0,0.0114264]
[1766664778589,0.0114247,87583.0,87568.0,0.0414264]
[1766664778991,0.0114242,87586.0,87570.0,0.0114262]
[1766664779290,0.0114242,87586.0,87570.0,0.0414262]
[1766664781100,0.0114244,87584.0,87570.0,0.03]
[1766664784298,0.0114247,87582.0,87570.0,0.03]
[1766664786588,0.011425,87580.0,87570.0,0.03]
[1766664786786,0.0114246,87583.0,87570.0,0.03]
[1766664786993,0.00017121,87591.0,87570.0,0.03]
[1766664787193,0.0114238,87589.0,87563.0,0.011427]
[1766664787398,0.02632831,87588.0,87563.0,0.041427]
[1766664787600,0.0114238,87589.0,87563.0,0.041427]
[1766664788201,0.011425,87580.0,87563.0,0.041427]
[1766664788601,0.0114256,87576.0,87563.0,0.03]
[1766664788802,0.0114237,87590.0,87563.0,0.03]
[1766664789004,0.02633096,87589.0,87563.0,0.03]
[1766664789203,0.0114257,87575.0,87563.0,0.03]
[1766664790506,0.0114259,87573.0,87563.0,0.03]
[1766664790707,0.0114255,87576.0,87563.0,0.03]
[1766664790907,0.0114251,87579.0,87563.0,0.03]
[1766664792208,0.0184,87580.0,87563.0,0.03]
[1766664792506,0.0114259,87573.0,87563.0,0.03]
[1766664792904,0.0184,87580.0,87545.0,0.00359815]
[1766664793109,0.00017131,87571.0,87554.0,0.0114282]
[1766664793308,0.00017131,87571.0,87554.0,0.0414282]
[1766664794208,0.01159751,87571.0,87554.0,0.0414282]
[1766664794610,0.01159751,87571.0,87556.0,0.011428]
[1766664794813,0.01159751,87571.0,87556.0,0.041428]
[1766664797210,0.01159751,87571.0,87556.0,0.03]
[1766664797406,0.0114264,87569.0,87556.0,0.03]
[1766664798610,0.0114271,87564.0,87556.0,0.03]
[1766664799202,0.0114273,87562.0,87556.0,0.03]
[1766664800094,0.011427,87565.0,87556.0,0.03]
[1766664801812,0.011427,87565.0,87551.0,0.05716]
[1766664802107,0.011427,87565.0,87551.0,0.08716]
[1766664807613,0.00017131,87571.0,87551.0,0.03]
[1766664807815,0.02631406,87570.0,87551.0,0.03]
[1766664808007,0.02631406,87569.0,87551.0,0.03]
[1766664808200,0.0114277,87559.0,87551.0,0.03]
[1766664808605,0.0114279,87558.0,87551.0,0.03]
[1766664808919,0.00017131,87571.0,87545.0,0.00359815]
[1766664808920,0.0114274,87561.0,87545.0,0.00359815]
[1766664809110,0.0114274,87561.0,87545.0,0.03359815]
[1766664812722,0.0114278,87558.0,87545.0,0.03359815]
[1766664813220,0.0114281,87556.0,87545.0,0.03359815]
[1766664817322,0.01136,87567.0,87545.0,0.03359815]
[1766664817520,0.02630089,87566.0,87545.0,0.03359815]
[1766664817710,0.01136,87567.0,87545.0,0.03359815]
[1766664817916,0.0114282,87555.0,87545.0,0.03]
[1766664820130,0.0114279,87558.0,87545.0,0.03]
[1766664821725,0.01136,87567.0,87545.0,0.03]
[1766664822031,0.0114277,87559.0,87545.0,0.03]
[1766664823631,0.01136,87567.0,87545.0,0.03]
[1766664824233,0.0114279,87558.0,87545.0,0.03]
[1766664827631,0.0114281,87556.0,87545.0,0.03]
[1766664829727,0.0114284,87554.0,87545.0,0.03]
[1766664831339,0.0114287,87552.0,87545.0,0.03]
[1766664832539,0.0114272,87563.0,87537.0,0.00013778]
[1766664832847,0.0114293,87547.0,87537.0,0.03013778]
[1766664833033,0.0114281,87556.0,87537.0,0.08733778]
[1766664833342,0.0114292,87548.0,87537.0,0.08733778]
[1766664834340,0.0114288,87551.0,87537.0,0.08733778]
[1766664838248,0.0114288,87551.0,87537.0,0.03013778]
[1766664838449,0.011429,87549.0,87537.0,0.08733778]
[1766664839044,0.0114292,87548.0,87537.0,0.03013778]
[1766664839246,0.0114282,87556.0,87537.0,0.06937778]
[1766664839446,0.02633577,87555.0,87537.0,0.06937778]
[1766664839653,0.02633577,87554.0,87537.0,0.06937778]
[1766664839849,0.02633722,87553.0,87537.0,0.03013778]
[1766664840040,0.02633722,87552.0,87537.0,0.03013778]
[1766664840239,0.0114295,87546.0,87537.0,0.03013778]
[1766664841453,0.0114278,87558.0,87537.0,0.00013778]
[1766664841641,0.02633433,87557.0,87537.0,0.00013778]
[1766664841841,0.0114278,87558.0,87537.0,0.00013778]
[1766664841842,0.02633433,87556.0,87537.0,0.00013778]
[1766664842042,0.02633433,87555.0,87537.0,0.00013778]
[1766664842350,0.0114294,87546.0,87537.0,0.00013778]
[1766664842550,0.00013822,87545.0,87531.0,0.0114313]
[1766664842757,0.00013822,87545.0,87531.0,0.0511913]
[1766664842941,0.00013822,87545.0,87531.0,0.0921113]
[1766664843440,0.00013822,87545.0,87531.0,0.0986313]
[1766664843635,0.00013822,87545.0,87531.0,0.03]
[1766664843847,0.0114307,87536.0,87531.0,0.02000001]
[1766664844047,0.0114307,87536.0,87511.0,0.05]
[1766664844048,0.011431,87534.0,87517.0,0.0114331]
[1766664844256,0.01160231,87534.0,87519.0,0.0114328]
[1766664844449,0.01160231,87534.0,87519.0,0.0414328]
[1766664845155,0.00017131,87534.0,87519.0,0.03]
[1766664845354,0.00017131,87534.0,87522.0,0.0114325]
[1766664845655,0.0114303,87539.0,87522.0,0.0414325]
[1766664846245,0.0114303,87539.0,87523.0,0.05336]
[1766664846445,0.0114303,87539.0,87523.0,0.08336]
[1766664847147,0.00017131,87540.0,87523.0,0.03]
[1766664847343,0.00017131,87540.0,87523.0,0.0872]
[1766664848058,0.0114307,87536.0,87523.0,0.0872]
[1766664848553,0.0114304,87539.0,87523.0,0.0872]
[1766664849356,0.00017131,87540.0,87524.0,0.0114322]
[1766664849555,0.00017131,87540.0,87524.0,0.0414322]
[1766664852658,0.01160151,87540.0,87524.0,0.0414322]
[1766664852948,0.01160151,87540.0,87524.0,0.03]
[1766664853751,0.0114305,87538.0,87524.0,0.03]
[1766664854456,0.0114307,87536.0,87524.0,0.03]
[1766664856560,0.0114307,87536.0,87522.0,0.00017131]
[1766664856857,0.0114312,87532.0,87523.0,0.0572]
[1766664857058,0.0114312,87532.0,87523.0,0.0872]
[1766664857758,0.00017131,87540.0,87523.0,0.0872]
[1766664859353,0.0114307,87536.0,87523.0,0.0872]
[1766664864564,0.00017131,87540.0,87523.0,0.0872]
[1766664865264,0.0114306,87537.0,87523.0,0.0872]
[1766664865666,1.31e-06,87540.0,87523.0,0.0872]
[1766664865861,0.00736,87547.0,87523.0,0.0872]
[1766664866168,0.0114303,87540.0,87523.0,0.0872]
[1766664866969,0.00736,87547.0,87523.0,0.0872]
[1766664867167,0.02606921,87546.0,87526.0,0.0114319]
[1766664867470,0.0114303,87539.0,87523.0,0.0686323]
[1766664867669,0.0114296,87545.0,87523.0,0.03]
[1766664867964,0.011431,87534.0,87524.0,0.03356]
[1766664868267,0.011431,87534.0,87524.0,0.06356]
[1766664868467,0.00017131,87543.0,87524.0,0.06356]
[1766664868867,0.0114305,87538.0,87524.0,0.06356]
[1766664870361,0.00736,87547.0,87533.0,0.011431]
[1766664870557,0.01756,87548.0,87524.0,0.03356]
[1766664870758,0.08211862,87578.0,87524.0,0.03356]
[1766664870759,0.0234,87558.0,87536.0,0.0114306]
[1766664870963,0.02608285,87557.0,87536.0,0.0114306]
[1766664871164,0.02608285,87556.0,87536.0,0.0114306]
[1766664871367,0.0114288,87551.0,87537.0,0.00017131]
[1766664871872,0.011429,87549.0,87537.0,0.00017131]
[1766664872757,0.0114286,87552.0,87537.0,0.00017131]
[1766664873369,0.0114289,87550.0,87537.0,0.00017131]
[1766664876977,0.0114289,87550.0,87536.0,0.0376]
[1766664878167,0.0114289,87550.0,87536.0,0.0490306]
[1766664878367,0.0114292,87548.0,87536.0,0.0676]
[1766664878780,0.0114292,87548.0,87536.0,0.0376]
[1766664879773,0.01159961,87555.0,87536.0,0.0376]
[1766664880077,0.01159961,87555.0,87537.0,0.00578343]
[1766664880274,0.01159961,87555.0,87538.0,0.00578343]
[1766664880480,0.01159961,87555.0,87539.0,0.00578343]
[1766664880682,0.01159961,87555.0,87540.0,0.00578343]
[1766664880877,0.01159961,87555.0,87541.0,0.00578343]
[1766664881181,0.01159961,87555.0,87542.0,0.00578343]
[1766664881381,0.00017131,87555.0,87543.0,3e-08]
[1766664881580,0.0114287,87552.0,87536.0,0.0490306]
[1766664881783,0.0114289,87550.0,87536.0,0.0376]
[1766664882275,0.0114289,87550.0,87536.0,0.0676]
[1766664882481,0.0114289,87550.0,87536.0,0.0376]
[1766664883382,0.00017131,87555.0,87536.0,0.0376]
[1766664883595,0.00017131,87555.0,87534.0,0.00017131]
[1766664883596,0.0114295,87546.0,87534.0,0.00017131]
[1766664883780,0.0114295,87546.0,87534.0,0.03017131]
[1766664885579,0.0114296,87544.0,87534.0,0.03017131]
[1766664888692,0.00017131,87555.0,87534.0,0.03017131]
[1766664889376,0.0114298,87543.0,87534.0,0.03017131]
[1766664889990,0.0114285,87553.0,87534.0,0.03017131]
[1766664890178,0.0114298,87543.0,87534.0,0.03017131]
[1766664890676,0.01143,87541.0,87534.0,0.03017131]
[1766664891790,0.01143,87541.0,87534.0,0.01]
[1766664893386,0.01143,87541.0,87535.0,0.0049364]
[1766664893588,0.01143,87541.0,87536.0,0.0049364]
[1766664893789,0.0114303,87539.0,87529.0,0.00017131]
[1766664893992,0.0114303,87539.0,87530.0,0.0572]
[1766664894193,0.0114303,87539.0,87530.0,0.0872]
[1766664898295,0.0114306,87537.0,87530.0,0.03]
[1766664900094,0.0114289,87550.0,87530.0,0.03]
[1766664900398,0.0114302,87540.0,87530.0,0.03]
[1766664901896,0.0114304,87538.0,87521.0,0.0114326]
[1766664902090,0.0114289,87550.0,87522.0,0.0572]
[1766664902297,0.0114305,87538.0,87522.0,0.0872]
[1766664902487,0.0114305,87538.0,87522.0,0.0986325]
[1766664902888,0.0114301,87541.0,87524.0,0.0114322]
[1766664903193,0.00017131,87539.0,87524.0,0.0414322]
[1766664903392,0.01160161,87539.0,87524.0,0.0414322]
[1766664904000,0.01160161,87539.0,87525.0,0.0572]
[1766664904299,0.01160161,87539.0,87525.0,0.0872]
[1766664905801,0.01160161,87539.0,87526.0,0.00497212]
[1766664905989,0.01160161,87539.0,87527.0,0.00497212]
[1766664906190,0.01160161,87539.0,87528.0,0.00497212]
[1766664906393,0.01160161,87539.0,87529.0,0.00497212]
[1766664906592,0.01160161,87539.0,87530.0,0.00497212]
[1766664906800,0.01160161,87539.0,87531.0,0.00497212]
[1766664907002,0.01160161,87539.0,87532.0,0.00497212]
[1766664907303,0.01160161,87539.0,87533.0,0.00497212]
[1766664907494,0.01160161,87539.0,87534.0,0.00497212]
[1766664907697,0.01160161,87539.0,87535.0,2e-08]
[1766664908001,0.01160161,87539.0,87525.0,0.0572]
[1766664908202,0.01160161,87539.0,87525.0,0.0872]
[1766664910005,0.0114304,87539.0,87525.0,0.0872]
[1766664916607,0.0114306,87537.0,87525.0,0.0872]
[1766664917107,0.0114303,87539.0,87525.0,0.0872]
[1766664918607,0.0114302,87540.0,87525.0,0.0872]
[1766664919609,0.00017131,87541.0,87527.0,0.0114318]
[1766664919905,1.45792,87552.0,87528.0,0.00494006]
[1766664920094,0.0114295,87545.0,87531.0,0.0114313]
[1766664920407,0.0114295,87545.0,87532.0,0.00494006]
[1766664920606,0.0114295,87545.0,87533.0,0.00494006]
[1766664920798,0.0114295,87545.0,87534.0,0.00494006]
[1766664920999,0.0114295,87545.0,87535.0,0.00494006]
[1766664921199,0.0114295,87545.0,87536.0,0.00494006]
[1766664921408,0.0114295,87545.0,87537.0,0.00494006]
[1766664921610,0.0114295,87545.0,87538.0,0.00494006]
[1766664921905,0.0114295,87545.0,87539.0,0.00494006]
[1766664922109,0.0114295,87545.0,87540.0,0.00494006]
[1766664922309,0.0114295,87545.0,87541.0,6e-08]
[1766664922510,0.0114295,87545.0,87531.0,0.0114313]
[1766664922712,0.0114295,87545.0,87528.0,0.0114316]
[1766664923010,0.0114295,87545.0,87528.0,0.0414316]
[1766664923205,0.00017131,87548.0,87532.0,0.0114311]
[1766664923411,0.00017131,87548.0,87532.0,0.0414311]
[1766664923605,0.00017131,87548.0,87533.0,0.0572]
[1766664923910,0.0114293,87547.0,87533.0,0.0772]
[1766664926108,0.00017131,87548.0,87534.0,0.0114309]
[1766664927609,0.00017131,87548.0,87533.0,0.0572]
[1766664927610,0.0114293,87547.0,87533.0,0.0572]
[1766664927903,0.0114295,87545.0,87533.0,0.0872]
[1766664929998,0.00017131,87548.0,87533.0,0.0872]
[1766664930202,0.0114295,87545.0,87533.0,0.0872]
[1766664931917,0.0114295,87546.0,87533.0,0.0872]
[1766664933913,0.0114296,87544.0,87533.0,0.0872]
[1766664934305,0.0114296,87544.0,87534.0,0.00489405]
[1766664934606,0.0114296,87544.0,87535.0,0.00489405]
[1766664934806,0.0114296,87544.0,87536.0,0.00489405]
[1766664935007,0.0114296,87544.0,87537.0,0.00489405]
[1766664935207,0.00017131,87548.0,87538.0,0.00489405]
[1766664935418,0.02661692,87547.0,87539.0,0.00489405]
[1766664935720,0.02661692,87546.0,87540.0,0.00489405]
[1766664936020,0.00017131,87548.0,87541.0,5e-08]
[1766664936317,0.0114296,87544.0,87533.0,0.0572]
[1766664940027,0.00017131,87548.0,87533.0,0.0572]
[1766664941224,0.0114293,87547.0,87533.0,0.0572]
[1766664943225,0.0114295,87545.0,87533.0,0.0572]
[1766664947828,0.0114295,87545.0,87534.0,0.00486758]
[1766664948127,0.0114295,87545.0,87535.0,0.00486758]
[1766664948323,0.0114295,87545.0,87536.0,0.00486758]
[1766664948525,0.0114295,87545.0,87537.0,0.00486758]
[1766664948726,0.0114295,87545.0,87538.0,0.00486758]
[1766664948928,0.0114295,87545.0,87539.0,0.00486758]
[1766664949126,0.0114295,87545.0,87540.0,0.00486758]
[1766664949328,0.0114295,87545.0,87541.0,8e-08]
[1766664949516,0.0114295,87545.0,87533.0,0.0572]
[1766664949935,0.00017131,87548.0,87533.0,0.0572]
[1766664950228,0.0114295,87545.0,87533.0,0.0572]
[1766664959936,0.00017131,87548.0,87533.0,0.0572]
[1766664960235,0.0114295,87545.0,87533.0,0.0572]
[1766664961631,0.0114298,87543.0,87533.0,0.0572]
[1766664961834,0.00017131,87548.0,87526.0,0.011432]
[1766664962029,0.02660815,87547.0,87527.0,0.0572]
[1766664962234,0.0114301,87541.0,87527.0,0.0872]
[1766664964436,0.0114297,87544.0,87527.0,0.0872]
[1766664966441,0.0114293,87547.0,87529.0,0.0114315]
[1766664966642,0.0114293,87547.0,87529.0,0.0414315]
[1766664966835,0.0114296,87545.0,87529.0,0.03]
[1766664967138,0.0114296,87545.0,87529.0,0.0414316]
[1766664969938,0.0114298,87543.0,87529.0,0.0414316]
[1766664970543,0.0114301,87541.0,87529.0,0.03]
[1766664972945,0.0114296,87545.0,87529.0,0.03]
[1766664973142,0.0114296,87545.0,87530.0,0.0572]
[1766664973341,0.0114296,87545.0,87530.0,0.0986314]
[1766664977052,0.01160051,87548.0,87532.0,0.0114311]
[1766664977252,0.01160051,87548.0,87532.0,0.0414311]
[1766664977754,0.0114294,87546.0,87532.0,0.0414311]
[1766664978454,0.0114294,87546.0,87532.0,0.03]
[1766664979856,0.02660916,87545.0,87532.0,0.03]
[1766664980058,0.02660916,87544.0,87532.0,0.03]
[1766664980357,0.0114294,87546.0,87532.0,0.03]
[1766664980547,0.02660932,87545.0,87532.0,0.03]
[1766664980742,0.02660932,87544.0,87532.0,0.03]
[1766664980940,0.0114294,87546.0,87532.0,0.03]
[1766664981153,0.02660932,87545.0,87532.0,0.03]
[1766664981356,0.02660932,87544.0,87532.0,0.03]
[1766664981557,0.0114294,87546.0,87532.0,0.03]
[1766664981760,0.02660932,87545.0,87532.0,0.03]
[1766664981952,0.02660932,87544.0,87532.0,0.03]
[1766664982153,0.0114294,87546.0,87532.0,0.03]
[1766664982353,0.02660821,87545.0,87532.0,0.03]
[1766664982553,0.02660821,87544.0,87532.0,0.03]
[1766664982755,0.0114294,87546.0,87532.0,0.03]
[1766664983055,0.02660812,87545.0,87532.0,0.03]
[1766664983354,0.0114298,87543.0,87532.0,0.03]
[1766664983551,0.00017131,87548.0,87532.0,0.03]
[1766664983752,0.02660814,87547.0,87532.0,0.03]
[1766664984057,0.02660814,87546.0,87532.0,0.03]
[1766664984259,0.02660814,87545.0,87532.0,0.03]
[1766664984457,0.02660814,87544.0,87532.0,0.03]
[1766664984653,0.00017131,87548.0,87532.0,0.03]
[1766664984853,0.02665393,87547.0,87532.0,0.03]
[1766664985047,0.02665393,87546.0,87532.0,0.03]
[1766664985246,0.03808353,87545.0,87532.0,0.03]
[1766664985549,0.0114298,87543.0,87532.0,0.03]
[1766664991564,0.0114295,87546.0,87532.0,0.03]
[1766664994267,0.00017131,87548.0,87532.0,0.03]
[1766664995373,0.0114293,87547.0,87532.0,0.03]
[1766664997569,0.00017131,87548.0,87532.0,0.03]
[1766664997772,0.00017131,87548.0,87533.0,0.0572]
[1766664998670,0.0114298,87543.0,87533.0,0.0572]
[1766665003774,0.0114295,87546.0,87533.0,0.0572]
[1766665007074,0.00017131,87548.0,87533.0,0.0572]
[1766665007275,0.0114292,87547.0,87533.0,0.0572]
[1766665008176,0.0114296,87545.0,87533.0,0.0572]
[1766665009273,0.0114296,87545.0,87529.0,0.0114316]
[1766665009479,0.0114296,87545.0,87530.0,0.0572]
[1766665009668,0.0114296,87545.0,87530.0,0.0872]
[1766665011179,0.01160051,87548.0,87530.0,0.0872]
[1766665011578,0.0114294,87546.0,87530.0,0.0872]
[1766665012782,0.0114294,87546.0,87531.0,0.0114313]
[1766665012981,0.0114294,87546.0,87531.0,0.0414313]
[1766665014680,0.0114294,87546.0,87531.0,0.03]
[1766665015081,0.0114297,87544.0,87531.0,0.03]
[1766665015481,0.0114297,87544.0,87532.0,0.0572]
[1766665015681,0.0114297,87544.0,87532.0,0.0872]
[1766665015983,0.0114297,87544.0,87532.0,0.03]
[1766665016187,0.0114297,87544.0,87532.0,0.0872]
[1766665016686,0.0114297,87544.0,87532.0,0.03]
[1766665016880,0.0114297,87544.0,87532.0,0.0872]
[1766665017184,0.0114297,87544.0,87532.0,0.0572]
[1766665030090,0.0114299,87542.0,87532.0,0.0572]
[1766665032995,0.0114296,87545.0,87532.0,0.0572]
[1766665033183,0.02666211,87544.0,87532.0,0.0572]
[1766665033382,0.0114296,87545.0,87532.0,0.0572]
[1766665033588,0.02666213,87544.0,87532.0,0.0572]
[1766665033778,0.0114296,87545.0,87532.0,0.0572]
[1766665033984,0.02666218,87544.0,87532.0,0.0572]
[1766665034192,0.0114296,87545.0,87532.0,0.0572]
[1766665034394,0.0266622,87544.0,87532.0,0.0572]
[1766665034596,0.0114296,87545.0,87532.0,0.0572]
[1766665034795,0.02666231,87544.0,87532.0,0.0572]
[1766665034999,0.0114296,87545.0,87532.0,0.0572]
[1766665035196,0.02666231,87544.0,87532.0,0.0572]
[1766665035394,0.0114296,87545.0,87532.0,0.0572]
[1766665035595,0.02666587,87544.0,87532.0,0.0572]
[1766665035795,0.0114296,87545.0,87532.0,0.0572]
[1766665035990,0.0266658,87544.0,87532.0,0.0572]
[1766665036198,0.0114296,87545.0,87532.0,0.0572]
[1766665036398,0.02666592,87544.0,87532.0,0.0572]
[1766665036597,0.0114296,87545.0,87532.0,0.0572]
[1766665036798,0.02666601,87544.0,87532.0,0.0572]
[1766665036999,0.0114296,87545.0,87532.0,0.0572]
[1766665037197,0.02666598,87544.0,87532.0,0.0572]
[1766665037408,0.0114296,87545.0,87532.0,0.0572]
[1766665037600,0.02666606,87544.0,87532.0,0.0572]
[1766665037901,0.0114296,87545.0,87532.0,0.0572]
[1766665038104,0.02666603,87544.0,87532.0,0.0572]
[1766665038397,0.0114296,87545.0,87532.0,0.0572]
[1766665038604,0.02666611,87544.0,87532.0,0.0572]
[1766665038799,0.0114296,87545.0,87532.0,0.0572]
[1766665038990,0.02666612,87544.0,87532.0,0.0572]
[1766665039187,0.0114296,87545.0,87532.0,0.0572]
[1766665039387,0.02666613,87544.0,87532.0,0.0572]
[1766665039596,0.0114296,87545.0,87532.0,0.0572]
[1766665039793,0.02666613,87544.0,87532.0,0.0572]
[1766665039999,0.0114296,87545.0,87532.0,0.0572]
[1766665040394,0.00017131,87548.0,87532.0,0.0572]
[1766665040594,0.02666618,87547.0,87532.0,0.0572]
[1766665040796,0.00017131,87548.0,87532.0,0.0572]
[1766665041002,0.02666618,87547.0,87532.0,0.0572]
[1766665041204,0.0114296,87545.0,87532.0,0.0572]
[1766665044306,0.01160041,87548.0,87532.0,0.0572]
[1766665044509,0.02666601,87547.0,87532.0,0.0572]
[1766665044696,0.01160041,87548.0,87532.0,0.0572]
[1766665044903,0.02661995,87547.0,87532.0,0.0572]
[1766665045096,0.0114294,87546.0,87532.0,0.0572]
[1766665048804,0.0114294,87546.0,87531.0,0.0686313]
[1766665049000,0.0114294,87546.0,87531.0,0.0414313]
[1766665049207,0.0114294,87546.0,87531.0,0.0829913]
[1766665049511,0.0114294,87546.0,87531.0,0.0986313]
[1766665054013,0.00017131,87548.0,87531.0,0.0872]
[1766665054208,0.0114284,87554.0,87531.0,0.0872]
[1766665054508,0.0114279,87558.0,87542.0,0.0114298]
[1766665054703,0.0114266,87568.0,87542.0,0.02]
[1766665054907,0.00498501,87569.0,87555.0,0.0114281]
[1766665055113,0.0572,87573.0,87555.0,0.0314281]
[1766665055304,0.011426,87572.0,87555.0,0.03159941]
[1766665055704,0.0114263,87570.0,87555.0,0.03159941]
[1766665055904,0.0114263,87570.0,87555.0,0.02017131]
[1766665056799,0.05737131,87573.0,87558.0,0.0114277]
[1766665057006,0.05737131,87573.0,87560.0,0.0114274]
[1766665057211,0.05737131,87573.0,87555.0,0.00017131]
[1766665057212,0.0572,87579.0,87555.0,0.00017131]
[1766665057415,0.0114252,87579.0,87555.0,0.03017131]
[1766665057798,0.0114255,87576.0,87559.0,0.0114276]
[1766665058003,0.0114255,87576.0,87559.0,0.0414276]
[1766665058202,0.01159681,87576.0,87559.0,0.0414276]
[1766665058603,0.0572,87582.0,87559.0,0.03]
[1766665058799,0.0686248,87582.0,87559.0,0.03]
[1766665059711,0.00011387,87579.0,87559.0,0.03]
[1766665060313,0.00011387,87579.0,87563.0,0.0114271]
[1766665060514,0.00011387,87579.0,87565.0,0.0114268]
[1766665061617,0.0626248,87582.0,87567.0,0.0114266]
[1766665064508,0.0512,87582.0,87567.0,0.0114266]
[1766665064706,0.0512,87582.0,87571.0,0.011426]
[1766665065611,0.0114236,87591.0,87573.0,0.0114258]
[1766665065817,0.0114236,87591.0,87573.0,0.01159711]
[1766665068320,0.0114239,87588.0,87573.0,0.00017131]
[1766665073313,0.0114244,87584.0,87573.0,0.00017131]
[1766665075319,0.0114247,87582.0,87573.0,0.00017131]
[1766665076227,0.0114251,87579.0,87573.0,0.00017131]
[1766665076424,0.0572,87592.0,87573.0,0.00017131]
[1766665076425,0.0114257,87575.0,87573.0,1e-08]
[1766665076622,0.03676,87580.0,87554.0,0.0114282]
[1766665076819,0.0114263,87570.0,87554.0,0.0414282]
[1766665077416,0.0114259,87573.0,87556.0,0.011428]
[1766665077724,0.01159721,87573.0,87556.0,0.04159931]
[1766665078826,0.00017131,87573.0,87556.0,0.03017131]
[1766665079926,0.00017131,87573.0,87559.0,0.0114276]
[1766665080122,0.00017131,87573.0,87559.0,0.0414276]
[1766665081223,0.00017131,87573.0,87559.0,0.03]
[1766665081420,0.03676,87579.0,87559.0,0.03]
[1766665081826,0.03676,87579.0,87566.0,0.0114267]
[1766665082229,0.0114247,87582.0,87566.0,0.0114267]
[1766665082441,0.0114234,87593.0,87566.0,0.02]
[1766665082625,0.0114234,87593.0,87571.0,0.00017131]
[1766665082820,0.0114234,87593.0,87577.0,0.0114253]
[1766665083533,0.01132,87597.0,87574.0,0.0114257]
[1766665084231,0.02597288,87596.0,87574.0,0.0114257]
[1766665084427,0.02597288,87595.0,87574.0,0.0114257]
[1766665084633,0.01132,87597.0,87574.0,0.0114257]
[1766665084938,0.0114237,87590.0,87574.0,0.0114257]
[1766665085329,1.45744,87599.0,87574.0,0.0114257]
[1766665085330,0.0572,87595.0,87574.0,0.0114257]
[1766665086138,0.0259782,87594.0,87574.0,0.0114257]
[1766665086327,0.0114236,87591.0,87574.0,0.0114257]
[1766665087428,0.0114236,87591.0,87574.0,0.0314257]
[1766665089644,0.0114238,87589.0,87574.0,0.0314257]
[1766665090334,0.0572,87595.0,87574.0,0.02]
[1766665090530,0.02597661,87594.0,87574.0,0.02]
[1766665090842,0.0114241,87587.0,87574.0,0.02]
[1766665099151,0.0114244,87585.0,87574.0,0.02]
[1766665099653,0.0114246,87583.0,87574.0,0.02]
[1766665099847,0.0114249,87581.0,87574.0,0.02]
[1766665100043,0.0114249,87581.0,87571.0,0.00017131]
[1766665100348,0.0572,87595.0,87571.0,0.03017131]
[1766665100349,0.0114251,87579.0,87571.0,0.03017131]
[1766665100743,0.0114238,87589.0,87555.0,0.0114281]
[1766665100945,0.011426,87572.0,87555.0,0.03]
[1766665101150,0.011426,87572.0,87556.0,0.0572]
[1766665101455,0.011426,87572.0,87556.0,0.098628]
[1766665102345,0.011426,87572.0,87557.0,0.0572]
[1766665102546,0.00017131,87573.0,87557.0,0.0872]
[1766665102951,0.00017131,87573.0,87558.0,0.0572]
[1766665103142,0.00017131,87573.0,87558.0,0.0986277]
[1766665103541,0.00017131,87573.0,87560.0,0.0114274]
[1766665103745,0.0524673,87594.0,87560.0,0.03]
[1766665103947,0.02597115,87593.0,87560.0,0.03]
[1766665104248,0.0114243,87585.0,87567.0,0.0114265]
[1766665104451,0.0114246,87583.0,87564.0,0.011427]
[1766665104641,0.0114246,87583.0,87564.0,0.031427]
[1766665106457,0.0114248,87581.0,87564.0,0.031427]
[1766665107957,0.0114248,87581.0,87566.0,0.0114267]
[1766665113258,0.0114245,87584.0,87566.0,0.0114267]
[1766665113861,0.0114245,87584.0,87566.0,0.0414267]
[1766665114861,0.0114241,87587.0,87569.0,0.0114263]
[1766665115062,0.02599143,87586.0,87569.0,0.01159761]
[1766665115250,0.02599143,87585.0,87569.0,0.01159761]
[1766665115450,0.0114241,87587.0,87569.0,0.01159761]
[1766665115662,0.02599167,87586.0,87569.0,0.01159761]
[1766665115961,0.02599167,87585.0,87569.0,0.01159761]
[1766665116163,0.0114241,87587.0,87569.0,0.01159761]
[1766665116463,0.02599203,87586.0,87569.0,0.01159761]
[1766665116657,0.0114241,87587.0,87569.0,0.01159761]
[1766665116964,0.0114243,87585.0,87569.0,0.01159761]
[1766665117465,0.0114246,87583.0,87569.0,0.00017131]